[Event "Titled Tuesday Blitz November 08 Late 2022"]
[White "Pap, Gyula"]
[Black "Nakamura, Hikaru"]
[WhiteFideId "725323"]
[BlackFideId "2016192"]
[WhiteElo "2519"]
[BlackElo "2909"]
[Result "0-1"]
[Round "05"]
[TimeControl "180+1"]
[Date "2022.11.08"]
[WhiteClock "0:00:01"]
[BlackClock "0:00:39"]

1. d4 {[%clk 0:03:00]}  g6 {[%clk 0:03:00]} 2. e4 {[%clk 0:03:00]}  Bg7 {[%clk 0:03:00]} 3. h4 {[%clk 0:03:01]}  c5 {[%clk 0:03:01]} 4. dxc5 {[%clk 0:03:00]}  Qa5+ {[%clk 0:03:01]} 5. c3 {[%clk 0:03:01]}  Qxc5 {[%clk 0:03:02]} 6. Be3 {[%clk 0:02:58]}  Qc7 {[%clk 0:03:01]} 7. h5 {[%clk 0:02:58]}  Nf6 {[%clk 0:03:02]} 8. h6 {[%clk 0:02:59]}  Bf8 {[%clk 0:03:02]} 9. Nd2 {[%clk 0:02:59]}  d6 {[%clk 0:03:02]} 10. Be2 {[%clk 0:02:39]}  e5 {[%clk 0:03:00]} 11. Nh3 {[%clk 0:02:04]}  Be7 {[%clk 0:02:49]} 12. Ng5 {[%clk 0:02:04]}  O-O {[%clk 0:02:49]} 13. O-O {[%clk 0:01:40]}  d5 {[%clk 0:02:23]} 14. Qb3 {[%clk 0:01:32]}  Nc6 {[%clk 0:02:10]} 15. Rac1 {[%clk 0:01:27]}  Nxe4 {[%clk 0:01:55]} 16. Ndxe4 {[%clk 0:01:22]}  dxe4 {[%clk 0:01:55]} 17. Nxe4 {[%clk 0:01:15]}  Na5 {[%clk 0:01:47]} 18. Qa4 {[%clk 0:00:42]}  Bd7 {[%clk 0:01:41]} 19. Bb5 {[%clk 0:00:39]}  Bxb5 {[%clk 0:01:09]} 20. Qxb5 {[%clk 0:00:40]}  a6 {[%clk 0:01:08]} 21. Bb6 {[%clk 0:00:26]}  axb5 {[%clk 0:01:08]} 22. Bxc7 {[%clk 0:00:27]}  Nc4 {[%clk 0:00:58]} 23. b3 {[%clk 0:00:24]}  Rfc8 {[%clk 0:00:58]} 24. bxc4 {[%clk 0:00:21]}  Rxc7 {[%clk 0:00:59]} 25. cxb5 {[%clk 0:00:21]}  f5 {[%clk 0:00:59]} 26. Ng3 {[%clk 0:00:04]}  Rxa2 {[%clk 0:00:59]} 27. Rfe1 {[%clk 0:00:02]}  Bc5 {[%clk 0:00:43]} 28. Re2 {[%clk 0:00:03]}  Rxe2 {[%clk 0:00:42]} 29. Nxe2 {[%clk 0:00:04]}  Rd7 {[%clk 0:00:42]} 30. Kf1 {[%clk 0:00:03]}  Rd2 {[%clk 0:00:42]} 31. f3 {[%clk 0:00:03]}  Be3 {[%clk 0:00:39]} 32. Rb1 {[%clk 0:00:02]}  Bxh6 {[%clk 0:00:39]} 33. c4 {[%clk 0:00:01]}  Be3 {[%clk 0:00:39]} 34. Rd1 {[%clk 0:00:01]}  Rxd1# {[%clk 0:00:39]} 0-1


[Site "https://www.chess.com"]

[Event "Titled Tuesday Blitz November 08 Late 2022"]
[White "Piesik, Piotr"]
[Black "Mendez Fortes, Eduardo Jesus"]
[WhiteFideId "1136194"]
[BlackFideId "3502376"]
[WhiteElo "2316"]
[BlackElo "2307"]
[Result "1-0"]
[Round "05"]
[TimeControl "180+1"]
[Date "2022.11.09"]
[WhiteClock "0:01:08"]
[BlackClock "0:00:35"]

1. Nf3 {[%clk 0:02:38]}  d5 {[%clk 0:02:59]} 2. g3 {[%clk 0:02:38]}  Nf6 {[%clk 0:02:58]} 3. Bg2 {[%clk 0:02:38]}  e6 {[%clk 0:02:59]} 4. O-O {[%clk 0:02:39]}  c5 {[%clk 0:02:56]} 5. d3 {[%clk 0:02:40]}  Nc6 {[%clk 0:02:55]} 6. Nbd2 {[%clk 0:02:41]}  Be7 {[%clk 0:02:55]} 7. e4 {[%clk 0:02:42]}  O-O {[%clk 0:02:55]} 8. Qe2 {[%clk 0:02:41]}  b5 {[%clk 0:02:54]} 9. e5 {[%clk 0:02:41]}  Nd7 {[%clk 0:02:55]} 10. c3 {[%clk 0:02:42]}  Qc7 {[%clk 0:02:51]} 11. Re1 {[%clk 0:02:42]}  a5 {[%clk 0:02:51]} 12. h4 {[%clk 0:02:41]}  h6 {[%clk 0:02:49]} 13. Nf1 {[%clk 0:02:40]}  b4 {[%clk 0:02:49]} 14. c4 {[%clk 0:02:40]}  dxc4 {[%clk 0:02:30]} 15. dxc4 {[%clk 0:02:41]}  Bb7 {[%clk 0:02:29]} 16. b3 {[%clk 0:02:40]}  Nd4 {[%clk 0:02:16]} 17. Nxd4 {[%clk 0:02:39]}  cxd4 {[%clk 0:02:15]} 18. Bxb7 {[%clk 0:02:38]}  Qxb7 {[%clk 0:02:16]} 19. Bb2 {[%clk 0:02:36]}  Bc5 {[%clk 0:02:06]} 20. Rad1 {[%clk 0:02:35]}  Rad8 {[%clk 0:01:59]} 21. Bxd4 {[%clk 0:02:30]}  Bxd4 {[%clk 0:01:58]} 22. Rxd4 {[%clk 0:02:31]}  Nc5 {[%clk 0:01:51]} 23. Red1 {[%clk 0:02:31]}  Rxd4 {[%clk 0:01:43]} 24. Rxd4 {[%clk 0:02:32]}  a4 {[%clk 0:01:43]} 25. Nd2 {[%clk 0:02:31]}  axb3 {[%clk 0:01:42]} 26. axb3 {[%clk 0:02:32]}  Qa8 {[%clk 0:01:39]} 27. Qd1 {[%clk 0:02:21]}  Qa2 {[%clk 0:01:30]} 28. Rd6 {[%clk 0:02:05]}  Qb2 {[%clk 0:01:21]} 29. Nf3 {[%clk 0:01:52]}  Nxb3 {[%clk 0:01:10]} 30. Rb6 {[%clk 0:01:48]}  Ra8 {[%clk 0:00:58]} 31. Kg2 {[%clk 0:01:42]}  Ra2 {[%clk 0:00:53]} 32. Rb8+ {[%clk 0:01:41]}  Kh7 {[%clk 0:00:51]} 33. Qd3+ {[%clk 0:01:41]}  g6 {[%clk 0:00:51]} 34. Ng5+ {[%clk 0:01:11]}  hxg5 {[%clk 0:00:45]} 35. Qf3 {[%clk 0:01:11]}  Ra7 {[%clk 0:00:35]} 36. Qf6 {[%clk 0:01:08]} 1-0


[Site "https://www.chess.com"]

[Event "Titled Tuesday Blitz November 08 Late 2022"]
[White "Polster, Christian"]
[Black "Ferreira, Vitor Hugo Vieira"]
[WhiteFideId "12965081"]
[BlackFideId "2119765"]
[WhiteElo "2209"]
[BlackElo "2168"]
[Result "0-1"]
[Round "05"]
[TimeControl "180+1"]
[Date "2022.11.09"]
[WhiteClock "0:00:02"]
[BlackClock "0:00:10"]

1. e4 {[%clk 0:03:00]}  c5 {[%clk 0:02:57]} 2. Nc3 {[%clk 0:02:59]}  Nc6 {[%clk 0:02:57]} 3. Nge2 {[%clk 0:02:57]}  g6 {[%clk 0:02:56]} 4. d4 {[%clk 0:02:56]}  cxd4 {[%clk 0:02:56]} 5. Nxd4 {[%clk 0:02:57]}  Bg7 {[%clk 0:02:56]} 6. Be3 {[%clk 0:02:52]}  Nf6 {[%clk 0:02:56]} 7. Bc4 {[%clk 0:02:53]}  O-O {[%clk 0:02:55]} 8. Bb3 {[%clk 0:02:48]}  a5 {[%clk 0:02:51]} 9. Ndb5 {[%clk 0:02:22]}  a4 {[%clk 0:02:48]} 10. Nxa4 {[%clk 0:02:21]}  Qa5+ {[%clk 0:02:35]} 11. Nac3 {[%clk 0:01:28]}  Nxe4 {[%clk 0:02:33]} 12. O-O {[%clk 0:01:25]}  Nxc3 {[%clk 0:02:32]} 13. Nxc3 {[%clk 0:01:24]}  e6 {[%clk 0:02:19]} 14. Bd2 {[%clk 0:00:50]}  Qf5 {[%clk 0:02:02]} 15. Na4 {[%clk 0:00:41]}  d5 {[%clk 0:01:58]} 16. Nb6 {[%clk 0:00:38]}  Ra6 {[%clk 0:01:58]} 17. Nxc8 {[%clk 0:00:36]}  Rxc8 {[%clk 0:01:59]} 18. c3 {[%clk 0:00:36]}  Na5 {[%clk 0:01:46]} 19. Bc2 {[%clk 0:00:36]}  Qf6 {[%clk 0:01:41]} 20. Bd3 {[%clk 0:00:33]}  Rb6 {[%clk 0:01:36]} 21. b3 {[%clk 0:00:30]}  Qe7 {[%clk 0:01:28]} 22. Rc1 {[%clk 0:00:28]}  Nc6 {[%clk 0:01:27]} 23. Be3 {[%clk 0:00:25]}  d4 {[%clk 0:01:01]} 24. cxd4 {[%clk 0:00:25]}  Rb4 {[%clk 0:01:01]} 25. d5 {[%clk 0:00:25]}  exd5 {[%clk 0:00:57]} 26. Bc5 {[%clk 0:00:25]}  Qd8 {[%clk 0:00:56]} 27. Bxb4 {[%clk 0:00:23]}  Nxb4 {[%clk 0:00:57]} 28. Rxc8 {[%clk 0:00:23]}  Qxc8 {[%clk 0:00:58]} 29. Bb1 {[%clk 0:00:22]}  d4 {[%clk 0:00:57]} 30. Re1 {[%clk 0:00:20]}  h5 {[%clk 0:00:57]} 31. Qd2 {[%clk 0:00:19]}  Nd5 {[%clk 0:00:55]} 32. a4 {[%clk 0:00:18]}  Nc3 {[%clk 0:00:55]} 33. Bd3 {[%clk 0:00:17]}  Kh7 {[%clk 0:00:54]} 34. Bc4 {[%clk 0:00:18]}  Qd7 {[%clk 0:00:47]} 35. Qf4 {[%clk 0:00:15]}  f5 {[%clk 0:00:39]} 36. h4 {[%clk 0:00:14]}  d3 {[%clk 0:00:31]} 37. Qd2 {[%clk 0:00:13]}  Ne4 {[%clk 0:00:31]} 38. Qxd3 {[%clk 0:00:13]}  Qe7 {[%clk 0:00:28]} 39. Re2 {[%clk 0:00:09]}  Qxh4 {[%clk 0:00:27]} 40. Bd5 {[%clk 0:00:08]}  Nc3 {[%clk 0:00:23]} 41. Re3 {[%clk 0:00:06]}  Qd8 {[%clk 0:00:19]} 42. Bc4 {[%clk 0:00:03]}  Qb6 {[%clk 0:00:19]} 43. Rg3 {[%clk 0:00:02]}  Ne4 {[%clk 0:00:18]} 44. Rf3 {[%clk 0:00:02]}  Bd4 {[%clk 0:00:16]} 45. Qe2 {[%clk 0:00:02]}  Bc5 {[%clk 0:00:14]} 46. Bd3 {[%clk 0:00:02]}  Ng5 {[%clk 0:00:14]} 47. Rg3 {[%clk 0:00:02]}  Ne6 {[%clk 0:00:13]} 48. Qe5 {[%clk 0:00:01]}  Qd6 {[%clk 0:00:10]} 49. Kh2 {[%clk 0:00:02]}  Qxe5 {[%clk 0:00:10]} 0-1


[Site "https://www.chess.com"]

[Event "Titled Tuesday Blitz November 08 Late 2022"]
[White "Postnikov, Daniil"]
[Black "Cabarkapa, Novak"]
[WhiteFideId "4166329"]
[BlackFideId "943746"]
[WhiteElo "2261"]
[BlackElo "2390"]
[Result "0-1"]
[Round "05"]
[TimeControl "180+1"]
[Date "2022.11.09"]
[WhiteClock "0:00:14"]
[BlackClock "0:00:14"]

1. e4 {[%clk 0:03:00]}  d5 {[%clk 0:02:57]} 2. exd5 {[%clk 0:02:59]}  Qxd5 {[%clk 0:02:58]} 3. Nc3 {[%clk 0:03:00]}  Qd6 {[%clk 0:02:58]} 4. d4 {[%clk 0:02:59]}  Nf6 {[%clk 0:02:59]} 5. Bd3 {[%clk 0:03:00]}  g6 {[%clk 0:02:55]} 6. Nge2 {[%clk 0:03:00]}  Bg7 {[%clk 0:02:54]} 7. Bf4 {[%clk 0:03:00]}  Qd8 {[%clk 0:02:54]} 8. O-O {[%clk 0:02:58]}  O-O {[%clk 0:02:54]} 9. Qd2 {[%clk 0:02:56]}  b6 {[%clk 0:02:49]} 10. Ne4 {[%clk 0:02:36]}  Bb7 {[%clk 0:02:46]} 11. Nxf6+ {[%clk 0:02:32]}  Bxf6 {[%clk 0:02:46]} 12. c3 {[%clk 0:02:30]}  c5 {[%clk 0:02:42]} 13. Bh6 {[%clk 0:02:20]}  Re8 {[%clk 0:02:37]} 14. dxc5 {[%clk 0:02:19]}  bxc5 {[%clk 0:02:32]} 15. Rad1 {[%clk 0:02:15]}  Qc7 {[%clk 0:02:05]} 16. Nf4 {[%clk 0:02:07]}  c4 {[%clk 0:01:52]} 17. Be2 {[%clk 0:01:59]}  e6 {[%clk 0:01:43]} 18. Qe3 {[%clk 0:01:41]}  Nd7 {[%clk 0:01:36]} 19. Qg3 {[%clk 0:01:12]}  Be5 {[%clk 0:01:22]} 20. Qh4 {[%clk 0:00:57]}  Nf6 {[%clk 0:01:11]} 21. Rfe1 {[%clk 0:00:44]}  Ne4 {[%clk 0:00:50]} 22. Bf3 {[%clk 0:00:37]}  f5 {[%clk 0:00:50]} 23. g3 {[%clk 0:00:25]}  Bf6 {[%clk 0:00:50]} 24. Qh3 {[%clk 0:00:23]}  Rad8 {[%clk 0:00:36]} 25. Rxd8 {[%clk 0:00:22]}  Qxd8 {[%clk 0:00:37]} 26. Rd1 {[%clk 0:00:22]}  Qb6 {[%clk 0:00:30]} 27. Rd7 {[%clk 0:00:16]}  Qxf2+ {[%clk 0:00:29]} 28. Kh1 {[%clk 0:00:13]}  Qxf3+ {[%clk 0:00:29]} 29. Qg2 {[%clk 0:00:13]}  Qxg2+ {[%clk 0:00:25]} 30. Nxg2 {[%clk 0:00:13]}  Nc5 {[%clk 0:00:21]} 31. Rc7 {[%clk 0:00:13]}  Rd8 {[%clk 0:00:19]} 32. Kg1 {[%clk 0:00:11]}  Rd1+ {[%clk 0:00:18]} 33. Kf2 {[%clk 0:00:12]}  Nd3+ {[%clk 0:00:15]} 34. Ke2 {[%clk 0:00:12]}  Bf3+ {[%clk 0:00:04]} 35. Kxf3 {[%clk 0:00:10]}  Rf1+ {[%clk 0:00:04]} 36. Ke3 {[%clk 0:00:10]}  g5 {[%clk 0:00:04]} 37. h4 {[%clk 0:00:07]}  Rf2 {[%clk 0:00:03]} 38. hxg5 {[%clk 0:00:06]}  Be5 {[%clk 0:00:03]} 39. Nf4 {[%clk 0:00:06]}  Bxc7 {[%clk 0:00:03]} 40. Nxe6 {[%clk 0:00:05]}  Bb6+ {[%clk 0:00:03]} 41. Nd4 {[%clk 0:00:05]}  Rxb2 {[%clk 0:00:03]} 42. Kf3 {[%clk 0:00:04]}  Bxd4 {[%clk 0:00:03]} 43. cxd4 {[%clk 0:00:04]}  c3 {[%clk 0:00:04]} 44. g4 {[%clk 0:00:04]}  c2 {[%clk 0:00:04]} 45. g6 {[%clk 0:00:05]}  c1=Q {[%clk 0:00:05]} 46. Bxc1 {[%clk 0:00:05]}  Nxc1 {[%clk 0:00:05]} 47. gxf5 {[%clk 0:00:06]}  hxg6 {[%clk 0:00:05]} 48. fxg6 {[%clk 0:00:06]}  Kg7 {[%clk 0:00:05]} 49. Ke4 {[%clk 0:00:05]}  Kxg6 {[%clk 0:00:06]} 50. Kd5 {[%clk 0:00:06]}  Rxa2 {[%clk 0:00:06]} 51. Kc6 {[%clk 0:00:07]}  Rd2 {[%clk 0:00:07]} 52. d5 {[%clk 0:00:08]}  a5 {[%clk 0:00:07]} 53. d6 {[%clk 0:00:09]}  a4 {[%clk 0:00:08]} 54. d7 {[%clk 0:00:09]}  Rxd7 {[%clk 0:00:08]} 55. Kxd7 {[%clk 0:00:09]}  a3 {[%clk 0:00:09]} 56. Kc6 {[%clk 0:00:10]}  a2 {[%clk 0:00:10]} 57. Kb5 {[%clk 0:00:11]}  a1=Q {[%clk 0:00:11]} 58. Kc4 {[%clk 0:00:12]}  Ne2 {[%clk 0:00:11]} 59. Kb3 {[%clk 0:00:13]}  Qc3+ {[%clk 0:00:11]} 60. Ka2 {[%clk 0:00:11]}  Qb4 {[%clk 0:00:11]} 61. Ka1 {[%clk 0:00:11]}  Kg5 {[%clk 0:00:11]} 62. Ka2 {[%clk 0:00:11]}  Kh4 {[%clk 0:00:12]} 63. Ka1 {[%clk 0:00:12]}  Kh3 {[%clk 0:00:13]} 64. Ka2 {[%clk 0:00:13]}  Kh2 {[%clk 0:00:13]} 65. Ka1 {[%clk 0:00:13]}  Kh1 {[%clk 0:00:14]} 66. Ka2 {[%clk 0:00:14]}  Kg1 {[%clk 0:00:14]} 0-1


[Site "https://www.chess.com"]

[Event "Titled Tuesday Blitz November 08 Late 2022"]
[White "Prem, Pranav"]
[Black "Manelyuk, Daniil"]
[WhiteFideId "30901057"]
[BlackFideId "44173920"]
[WhiteElo "1970"]
[BlackElo "2209"]
[Result "0-1"]
[Round "05"]
[TimeControl "180+1"]
[Date "2022.11.09"]
[WhiteClock "0:00:05"]
[BlackClock "0:00:07"]

1. d4 {[%clk 0:02:58]}  Nf6 {[%clk 0:02:59]} 2. c4 {[%clk 0:02:57]}  c5 {[%clk 0:02:59]} 3. d5 {[%clk 0:02:57]}  b5 {[%clk 0:02:59]} 4. cxb5 {[%clk 0:02:57]}  a6 {[%clk 0:03:00]} 5. bxa6 {[%clk 0:02:57]}  g6 {[%clk 0:02:59]} 6. Nc3 {[%clk 0:02:57]}  Bg7 {[%clk 0:03:00]} 7. e4 {[%clk 0:02:56]}  O-O {[%clk 0:03:01]} 8. Nf3 {[%clk 0:02:56]}  Qa5 {[%clk 0:03:01]} 9. Bd2 {[%clk 0:02:53]}  d6 {[%clk 0:02:54]} 10. Be2 {[%clk 0:02:33]}  Bxa6 {[%clk 0:02:53]} 11. O-O {[%clk 0:02:33]}  Bxe2 {[%clk 0:02:53]} 12. Qxe2 {[%clk 0:02:32]}  Qa6 {[%clk 0:02:53]} 13. Qd1 {[%clk 0:02:28]}  Nbd7 {[%clk 0:02:51]} 14. Qc2 {[%clk 0:02:22]}  Rfb8 {[%clk 0:02:51]} 15. a4 {[%clk 0:02:10]}  Ne8 {[%clk 0:02:46]} 16. Bg5 {[%clk 0:01:59]}  Rb4 {[%clk 0:02:17]} 17. Bxe7 {[%clk 0:01:53]}  f6 {[%clk 0:02:17]} 18. Rfe1 {[%clk 0:01:36]}  Kf7 {[%clk 0:02:11]} 19. e5 {[%clk 0:01:26]}  dxe5 {[%clk 0:02:09]} 20. d6 {[%clk 0:01:25]}  Nxd6 {[%clk 0:01:57]} 21. Bxd6 {[%clk 0:01:22]}  Qxd6 {[%clk 0:01:55]} 22. Rad1 {[%clk 0:01:20]}  Qc6 {[%clk 0:01:28]} 23. b3 {[%clk 0:01:01]}  c4 {[%clk 0:01:27]} 24. Nb5 {[%clk 0:00:52]}  Rxb3 {[%clk 0:01:16]} 25. Rd6 {[%clk 0:00:50]}  Qc8 {[%clk 0:01:14]} 26. Red1 {[%clk 0:00:38]}  Nf8 {[%clk 0:00:47]} 27. Rd8 {[%clk 0:00:37]}  Qg4 {[%clk 0:00:28]} 28. Rxa8 {[%clk 0:00:18]}  Rxf3 {[%clk 0:00:28]} 29. Nd6+ {[%clk 0:00:15]}  Ke6 {[%clk 0:00:25]} 30. Re8+ {[%clk 0:00:11]}  Kd7 {[%clk 0:00:21]} 31. Rb8 {[%clk 0:00:08]}  Rd3 {[%clk 0:00:17]} 32. Rxd3 {[%clk 0:00:06]}  cxd3 {[%clk 0:00:18]} 33. Qxd3 {[%clk 0:00:06]}  Qd4 {[%clk 0:00:18]} 34. Qxd4 {[%clk 0:00:03]}  exd4 {[%clk 0:00:19]} 35. Nb5 {[%clk 0:00:04]}  Ne6 {[%clk 0:00:11]} 36. Kf1 {[%clk 0:00:04]}  f5 {[%clk 0:00:10]} 37. Rb7+ {[%clk 0:00:04]}  Kc6 {[%clk 0:00:09]} 38. Re7 {[%clk 0:00:04]}  Kd5 {[%clk 0:00:10]} 39. Ke2 {[%clk 0:00:04]}  Bh6 {[%clk 0:00:07]} 40. Kd3 {[%clk 0:00:03]}  Nc5+ {[%clk 0:00:07]} 41. Kc2 {[%clk 0:00:03]}  Kc4 {[%clk 0:00:06]} 42. Nd6+ {[%clk 0:00:02]}  Kd5 {[%clk 0:00:06]} 43. Nb5 {[%clk 0:00:02]}  d3+ {[%clk 0:00:05]} 44. Kd1 {[%clk 0:00:02]}  Bg5 {[%clk 0:00:04]} 45. Rd7+ {[%clk 0:00:02]}  Nxd7 {[%clk 0:00:04]} 46. a5 {[%clk 0:00:02]}  Nc5 {[%clk 0:00:04]} 47. Nc3+ {[%clk 0:00:03]}  Kc4 {[%clk 0:00:05]} 48. Nb1 {[%clk 0:00:01]}  Na6 {[%clk 0:00:05]} 49. Nd2+ {[%clk 0:00:02]}  Bxd2 {[%clk 0:00:05]} 50. Kxd2 {[%clk 0:00:03]}  Kd4 {[%clk 0:00:06]} 51. f3 {[%clk 0:00:03]}  f4 {[%clk 0:00:07]} 52. g3 {[%clk 0:00:03]}  g5 {[%clk 0:00:07]} 53. g4 {[%clk 0:00:04]}  h6 {[%clk 0:00:07]} 54. h3 {[%clk 0:00:05]}  Nb4 {[%clk 0:00:07]} 0-1


[Site "https://www.chess.com"]

[Event "Titled Tuesday Blitz November 08 Late 2022"]
[White "Ristic, Nebojsa B"]
[Black "Dudzinski, Pawel"]
[WhiteFideId "935468"]
[BlackFideId "1117890"]
[WhiteElo "2320"]
[BlackElo "2086"]
[Result "1-0"]
[Round "05"]
[TimeControl "180+1"]
[Date "2022.11.09"]
[WhiteClock "0:01:58"]
[BlackClock "0:00:06"]

1. d4 {[%clk 0:03:00]}  d5 {[%clk 0:02:58]} 2. Bf4 {[%clk 0:02:59]}  e6 {[%clk 0:02:57]} 3. e3 {[%clk 0:02:58]}  Bd6 {[%clk 0:02:54]} 4. Bg3 {[%clk 0:02:58]}  c5 {[%clk 0:02:54]} 5. c3 {[%clk 0:02:58]}  Nc6 {[%clk 0:02:55]} 6. Nf3 {[%clk 0:02:58]}  Nf6 {[%clk 0:02:55]} 7. Nbd2 {[%clk 0:02:57]}  O-O {[%clk 0:02:55]} 8. Bd3 {[%clk 0:02:58]}  b6 {[%clk 0:02:55]} 9. Qe2 {[%clk 0:02:57]}  Bb7 {[%clk 0:02:54]} 10. Rd1 {[%clk 0:02:57]}  Rc8 {[%clk 0:02:52]} 11. e4 {[%clk 0:02:56]}  Be7 {[%clk 0:02:47]} 12. e5 {[%clk 0:02:54]}  Nh5 {[%clk 0:02:47]} 13. a3 {[%clk 0:02:51]}  cxd4 {[%clk 0:02:38]} 14. cxd4 {[%clk 0:02:50]}  Na5 {[%clk 0:02:20]} 15. Nf1 {[%clk 0:02:43]}  g6 {[%clk 0:01:54]} 16. Ne3 {[%clk 0:02:41]}  Nc4 {[%clk 0:01:52]} 17. Ng4 {[%clk 0:02:34]}  Rc6 {[%clk 0:01:29]} 18. O-O {[%clk 0:02:30]}  Nxg3 {[%clk 0:01:27]} 19. fxg3 {[%clk 0:02:22]}  h5 {[%clk 0:01:27]} 20. Ne3 {[%clk 0:02:16]}  Nxe3 {[%clk 0:01:14]} 21. Qxe3 {[%clk 0:02:17]}  Kg7 {[%clk 0:01:14]} 22. Rf2 {[%clk 0:02:16]}  f5 {[%clk 0:00:52]} 23. exf6+ {[%clk 0:02:15]}  Bxf6 {[%clk 0:00:52]} 24. Rdf1 {[%clk 0:02:12]}  Qc7 {[%clk 0:00:37]} 25. Ne5 {[%clk 0:02:08]}  Bc8 {[%clk 0:00:09]} 26. Nxg6 {[%clk 0:02:00]}  Rf7 {[%clk 0:00:08]} 27. Ne5 {[%clk 0:02:00]}  Rf8 {[%clk 0:00:08]} 28. Rxf6 {[%clk 0:01:58]}  Rxf6 {[%clk 0:00:08]} 29. Qg5+ {[%clk 0:01:58]}  Rg6 {[%clk 0:00:07]} 30. Qxg6+ {[%clk 0:01:58]}  Kh8 {[%clk 0:00:06]} 31. Rf8# {[%clk 0:01:58]} 1-0


[Site "https://www.chess.com"]

[Event "Titled Tuesday Blitz November 08 Late 2022"]
[White "Rodriguez Fontecha, Marcos"]
[Black "Hoffmann, Asa"]
[WhiteFideId "2256576"]
[BlackFideId "2001470"]
[WhiteElo "2263"]
[BlackElo "2117"]
[Result "1-0"]
[Round "05"]
[TimeControl "180+1"]
[Date "2022.11.09"]
[WhiteClock "0:01:21"]
[BlackClock "0:00:20"]

1. d4 {[%clk 0:03:00]}  Nf6 {[%clk 0:02:58]} 2. Nf3 {[%clk 0:03:01]}  d6 {[%clk 0:02:54]} 3. Bg5 {[%clk 0:03:00]}  Nbd7 {[%clk 0:02:53]} 4. g3 {[%clk 0:03:00]}  c6 {[%clk 0:02:53]} 5. Bg2 {[%clk 0:03:00]}  e5 {[%clk 0:02:53]} 6. O-O {[%clk 0:03:01]}  Be7 {[%clk 0:02:52]} 7. c4 {[%clk 0:03:01]}  e4 {[%clk 0:02:50]} 8. Nfd2 {[%clk 0:03:00]}  d5 {[%clk 0:02:50]} 9. cxd5 {[%clk 0:02:59]}  cxd5 {[%clk 0:02:50]} 10. f3 {[%clk 0:02:58]}  exf3 {[%clk 0:02:44]} 11. Bxf3 {[%clk 0:02:59]}  O-O {[%clk 0:02:41]} 12. Nc3 {[%clk 0:02:59]}  Qb6 {[%clk 0:02:33]} 13. Nb3 {[%clk 0:02:52]}  a5 {[%clk 0:02:15]} 14. a4 {[%clk 0:02:32]}  Qe6 {[%clk 0:02:07]} 15. Nb5 {[%clk 0:02:28]}  Bd8 {[%clk 0:02:03]} 16. Rc1 {[%clk 0:02:20]}  b6 {[%clk 0:01:58]} 17. Bf4 {[%clk 0:02:19]}  Ba6 {[%clk 0:01:54]} 18. Bd6 {[%clk 0:02:01]}  Bxb5 {[%clk 0:01:47]} 19. Bxf8 {[%clk 0:02:00]}  Bxa4 {[%clk 0:01:46]} 20. Ba3 {[%clk 0:01:56]}  Ne4 {[%clk 0:01:39]} 21. Qd3 {[%clk 0:01:52]}  Bxb3 {[%clk 0:01:30]} 22. Qxb3 {[%clk 0:01:50]}  Ndf6 {[%clk 0:01:28]} 23. Qc2 {[%clk 0:01:38]}  Be7 {[%clk 0:01:21]} 24. Qc6 {[%clk 0:01:35]}  Qxc6 {[%clk 0:01:11]} 25. Rxc6 {[%clk 0:01:36]}  Bxa3 {[%clk 0:00:58]} 26. bxa3 {[%clk 0:01:37]}  b5 {[%clk 0:00:55]} 27. Rb1 {[%clk 0:01:37]}  Rb8 {[%clk 0:00:53]} 28. Rxb5 {[%clk 0:01:34]}  Re8 {[%clk 0:00:35]} 29. Bxe4 {[%clk 0:01:30]}  dxe4 {[%clk 0:00:30]} 30. d5 {[%clk 0:01:26]}  h5 {[%clk 0:00:28]} 31. d6 {[%clk 0:01:24]}  Rd8 {[%clk 0:00:28]} 32. Rxa5 {[%clk 0:01:23]}  Kf8 {[%clk 0:00:22]} 33. Re5 {[%clk 0:01:22]}  Nd7 {[%clk 0:00:20]} 34. Rxe4 {[%clk 0:01:21]} 1-0


[Site "https://www.chess.com"]

[Event "Titled Tuesday Blitz November 08 Late 2022"]
[White "Rose, Felix"]
[Black "Papayan, Oleg"]
[WhiteFideId "5105722"]
[BlackFideId "4193911"]
[WhiteElo "2039"]
[BlackElo "2153"]
[Result "0-1"]
[Round "05"]
[TimeControl "180+1"]
[Date "2022.11.09"]
[WhiteClock "0:00:01"]
[BlackClock "0:00:07"]

1. d4 {[%clk 0:02:59]}  Nf6 {[%clk 0:02:59]} 2. Bf4 {[%clk 0:02:58]}  d5 {[%clk 0:02:59]} 3. Nc3 {[%clk 0:02:58]}  c5 {[%clk 0:02:59]} 4. e4 {[%clk 0:02:57]}  cxd4 {[%clk 0:02:56]} 5. Qxd4 {[%clk 0:02:52]}  Nc6 {[%clk 0:02:57]} 6. Bb5 {[%clk 0:02:52]}  Bd7 {[%clk 0:02:54]} 7. Bxc6 {[%clk 0:02:52]}  Bxc6 {[%clk 0:02:53]} 8. e5 {[%clk 0:02:52]}  Nd7 {[%clk 0:02:52]} 9. e6 {[%clk 0:02:52]}  fxe6 {[%clk 0:02:53]} 10. Nf3 {[%clk 0:02:52]}  Qb6 {[%clk 0:02:46]} 11. Be5 {[%clk 0:02:05]}  Qxd4 {[%clk 0:02:02]} 12. Bxd4 {[%clk 0:02:04]}  Nf6 {[%clk 0:01:38]} 13. O-O-O {[%clk 0:01:57]}  g6 {[%clk 0:01:33]} 14. Rhe1 {[%clk 0:01:55]}  Bd7 {[%clk 0:01:30]} 15. Ng5 {[%clk 0:01:52]}  Bh6 {[%clk 0:01:30]} 16. h4 {[%clk 0:01:50]}  O-O {[%clk 0:01:24]} 17. Kb1 {[%clk 0:01:34]}  Bxg5 {[%clk 0:01:24]} 18. hxg5 {[%clk 0:01:35]}  Nh5 {[%clk 0:01:25]} 19. g3 {[%clk 0:01:27]}  Ng7 {[%clk 0:01:16]} 20. g4 {[%clk 0:01:17]}  Rf4 {[%clk 0:01:15]} 21. Rg1 {[%clk 0:01:04]}  b6 {[%clk 0:00:59]} 22. Rd3 {[%clk 0:00:50]}  Rc8 {[%clk 0:00:44]} 23. f3 {[%clk 0:00:40]}  Rc4 {[%clk 0:00:38]} 24. Ne2 {[%clk 0:00:38]}  Rf8 {[%clk 0:00:35]} 25. b3 {[%clk 0:00:35]}  Rcc8 {[%clk 0:00:30]} 26. a4 {[%clk 0:00:34]}  Ne8 {[%clk 0:00:23]} 27. Be5 {[%clk 0:00:26]}  Nd6 {[%clk 0:00:21]} 28. f4 {[%clk 0:00:26]}  Nf7 {[%clk 0:00:21]} 29. Bd4 {[%clk 0:00:21]}  Nd6 {[%clk 0:00:22]} 30. Rh1 {[%clk 0:00:20]}  Ne4 {[%clk 0:00:20]} 31. Be5 {[%clk 0:00:16]}  Nf2 {[%clk 0:00:17]} 32. Rdh3 {[%clk 0:00:13]}  Nxh1 {[%clk 0:00:17]} 33. Rxh1 {[%clk 0:00:13]}  a5 {[%clk 0:00:15]} 34. Nd4 {[%clk 0:00:11]}  Rc5 {[%clk 0:00:12]} 35. Kb2 {[%clk 0:00:11]}  Rfc8 {[%clk 0:00:12]} 36. Rh2 {[%clk 0:00:12]}  Rc3 {[%clk 0:00:11]} 37. Rg2 {[%clk 0:00:11]}  Rh3 {[%clk 0:00:11]} 38. Ne2 {[%clk 0:00:07]}  b5 {[%clk 0:00:10]} 39. axb5 {[%clk 0:00:06]}  Bxb5 {[%clk 0:00:11]} 40. Nd4 {[%clk 0:00:07]}  Bd7 {[%clk 0:00:11]} 41. Rg1 {[%clk 0:00:04]}  a4 {[%clk 0:00:09]} 42. bxa4 {[%clk 0:00:04]}  Ra8 {[%clk 0:00:09]} 43. Ra1 {[%clk 0:00:02]}  Ra5 {[%clk 0:00:10]} 44. Nb3 {[%clk 0:00:02]}  Rxa4 {[%clk 0:00:09]} 45. Rxa4 {[%clk 0:00:02]}  Bxa4 {[%clk 0:00:10]} 46. Nc5 {[%clk 0:00:03]}  Bb5 {[%clk 0:00:08]} 47. Nxe6 {[%clk 0:00:03]}  Rg3 {[%clk 0:00:08]} 48. Nc7 {[%clk 0:00:03]}  Bc6 {[%clk 0:00:07]} 49. Ne6 {[%clk 0:00:01]}  Rxg4 {[%clk 0:00:07]} 50. Kc3 {[%clk 0:00:01]}  Bd7 {[%clk 0:00:06]} 51. Nc5 {[%clk 0:00:01]}  Bc6 {[%clk 0:00:07]} 0-1


[Site "https://www.chess.com"]